fUST/lending_fUST_20240802
["ID","MTS","AMOUNT","RATE_DAILY","PERIOD"]
[333864087,1722579062825,-518.89,0.00014794,2]
[333864088,1722579062836,-1285.67,0.00014794,2]
[333864089,1722579062846,-500.0,0.00014794,2]
[333864090,1722579062857,-596.37,0.00014794,2]
[333864091,1722579062867,-1495.23,0.00014794,2]
[333864092,1722579062878,-500.0,0.00014794,2]
[333864093,1722579062887,-1907.27,0.00014794,2]
[333864094,1722579062897,-2296.25,0.00014794,2]
[333864095,1722579062908,-2383.19,0.00014794,2]
[333864096,1722579062919,-504.97431476,0.00014794,2]
[333864097,1722579062929,-2109.37,0.00014794,2]
[333864098,1722579062940,-1239.38,0.00014794,2]
[333864099,1722579062950,-500.0,0.00014794,2]
[333864100,1722579062960,-500.0,0.00014794,2]
[333864101,1722579062970,-500.0,0.00014794,2]
[333864102,1722579062980,-500.0,0.00014794,2]
[333864103,1722579062991,-500.0,0.00014794,2]
[333864104,1722579063001,-500.0,0.00014794,2]
[333864105,1722579063011,-500.0,0.00014794,2]
[333864106,1722579063020,-557.42,0.00014794,2]
[333864107,1722579063030,-8928.74,0.00014794,2]
[333864108,1722579063050,-505.64318216,0.00014794,2]
[333864109,1722579063060,-500.0,0.00014794,2]
[333864110,1722579063071,-3974.3,0.00014794,2]
[333864111,1722579063081,-677.33,0.00014794,2]
[333864112,1722579063092,-1546.82,0.00014794,2]
[333864113,1722579063102,-1043.82,0.00014794,2]
[333864114,1722579063112,-500.0,0.00014794,2]
[333864115,1722579063122,-500.0,0.00014794,2]
[333864116,1722579063132,-500.0,0.00014794,2]
[333864117,1722579063142,-545.96,0.00014794,2]
[333864118,1722579063154,-1153.47,0.00014794,2]
[333864119,1722579063165,-500.0,0.00014794,2]
[333864120,1722579063175,-749.82,0.00014794,2]
[333864121,1722579063186,-5500.2,0.00014794,2]
[333864122,1722579063196,-500.0,0.00014794,2]
[333864123,1722579063206,-560.79,0.00014794,2]
[333864124,1722579063216,-1545.14,0.00014794,2]
[333864125,1722579063226,-760.37,0.00014794,2]
[333864126,1722579063236,-500.0,0.00014794,2]
[333864127,1722579063246,-315.56709077,0.00014794,2]
[333864128,1722579063257,-500.0,0.00014794,2]
[333864129,1722579063267,-500.0,0.00014794,2]
[333864130,1722579063277,-500.0,0.00014794,2]
[333864131,1722579063288,-6346.79,0.00014794,2]
[333864132,1722579063300,-919.48,0.00014794,2]
[333864133,1722579063311,-703.72,0.00014794,2]
[333864134,1722579063322,-516.88,0.00014794,2]
[333864135,1722579063333,-500.0,0.00014794,2]
[333864136,1722579063344,-500.0,0.00014794,2]
[333864137,1722579063355,-2490.95,0.00014794,2]
[333864138,1722579063364,-795.32,0.00014794,2]
[333864139,1722579063375,-500.0,0.00014794,2]
[333864140,1722579063385,-500.0,0.00014794,2]
[333864141,1722579063396,-500.0,0.00014794,2]
[333864142,1722579063406,-434.74467247,0.00014794,2]
[333864143,1722579063416,-500.0,0.00014794,2]
[333864144,1722579063426,-500.0,0.00014794,2]
[333864145,1722579063435,-1047.04,0.00014794,2]
[333864146,1722579063445,-513.53288186,0.00014794,2]
[333864147,1722579063455,-500.0,0.00014794,2]
[333864148,1722579063465,-688.64,0.00014794,2]
[333864149,1722579063476,-514.61048618,0.00014794,2]
[333864150,1722579063486,-4027.37,0.00014794,2]
[333864151,1722579063496,-506.72242945,0.00014794,2]
[333864152,1722579063507,-420.0,0.00014794,2]
[333864153,1722579063517,-769.86,0.00014794,2]
[333864154,1722579063527,-500.0,0.00014794,2]
[333864155,1722579063538,-500.0,0.00014794,2]
[333864156,1722579063551,-1034.52,0.00014794,2]
[333864157,1722579063562,-500.0,0.00014794,2]
[333864158,1722579063572,-746.99,0.00014794,2]
[333864159,1722579063582,-500.0,0.00014794,2]
[333864160,1722579063593,-677.81,0.00014794,2]
[333864161,1722579063604,-1121.06,0.00014794,2]
[333864162,1722579063614,-817.67,0.00014794,2]
[333864163,1722579063626,-500.0,0.00014794,2]
[333864164,1722579063715,-746.97,0.00014794,2]
[333864165,1722579063730,-1338.14,0.00014794,2]
[333864166,1722579063740,-1468.19,0.00014794,2]
[333864167,1722579063751,-500.0,0.00014794,2]
[333864168,1722579063761,-407.67,0.00014868,2]
[333864169,1722579063772,-154.76450687,0.000149,2]
[333864170,1722579063782,-1560.87322854,0.00015,2]
[333864171,1722579063792,-7969.36638871,0.00015,2]
[333864172,1722579063802,-2847.40036017,0.00015,2]
[333864173,1722579063812,-951.59000491,0.00015,2]
[333864174,1722579063822,-1108.55605894,0.00015,2]
[333864175,1722579063832,-4858.84679641,0.00015,7]
[333864176,1722579063842,-1007.45529446,0.00015,2]
[333864177,1722579063853,-4242.41538419,0.00015,2]
[333864178,1722579063866,-150.112233,0.00015,2]
[333864179,1722579063877,-1000.0,0.00015,15]
[333864180,1722579063887,-668.65368038,0.00015067,2]
[333864181,1722579063897,-500.0,0.00015068,2]
[333864182,1722579063907,-500.0,0.00015068,2]
[333864183,1722579063918,-500.0,0.00015068,2]
[333864184,1722579063928,-974.01,0.00015068,2]
[333864185,1722579063938,-500.0,0.00015068,2]
[333864186,1722579063947,-500.0,0.00015068,2]
[333864187,1722579063957,-511.44062734,0.00015068,2]
[333864188,1722579063967,-500.0,0.00015068,2]
[333864189,1722579063977,-500.0,0.00015068,2]
[333864190,1722579063987,-500.0,0.00015068,2]
[333864191,1722579063998,-641.78,0.00015068,2]
[333864192,1722579064008,-347.16752511,0.00015068,2]
[333864193,1722579064018,-500.0,0.00015068,2]
[333864194,1722579064028,-723.5,0.00015068,2]
[333864195,1722579064038,-500.0,0.00015068,2]
[333864196,1722579064048,-628.3880829,0.00015068,2]
[333864197,1722579064058,-1075.74,0.00015068,2]
[333864198,1722579064068,-230.49266698,0.00015068,2]
[333864199,1722579064078,-947.16,0.00015068,2]
[333864200,1722579064088,-772.41,0.00015068,2]
[333864201,1722579064098,-507.54635793,0.00015068,2]
[333864202,1722579064108,-506.22274943,0.00015068,2]
[333864203,1722579064119,-500.0,0.00015068,2]
[333864204,1722579064129,-500.0,0.00015068,2]
[333864205,1722579064139,-902.37,0.00015068,2]
[333864206,1722579064155,-500.0,0.00015068,2]
[333864207,1722579064166,-500.0,0.00015068,2]
[333864208,1722579064176,-735.93,0.00015068,2]
[333864209,1722579064187,-500.0,0.00015068,2]
[333864210,1722579064197,-500.0,0.00015068,2]
[333864211,1722579064207,-765.76,0.00015068,2]
[333864212,1722579064217,-500.0,0.00015068,2]
[333864213,1722579064227,-500.0,0.00015068,2]
[333864214,1722579064242,-566.91,0.00015068,2]
[333864215,1722579064252,-592.23,0.00015068,2]
[333864216,1722579064262,-500.0,0.00015068,2]
[333864217,1722579064272,-503.1,0.00015068,2]
[333864218,1722579064282,-502.720366,0.00015068,2]
[333864219,1722579064292,-2064.69,0.00015068,2]
[333864220,1722579064301,-500.0,0.00015068,2]
[333864221,1722579064311,-500.0,0.00015068,2]
[333864222,1722579064320,-978.62,0.00015068,2]
[333864223,1722579064329,-500.0,0.00015068,2]
[333864224,1722579064342,-2504.91,0.00015068,2]
[333864225,1722579064353,-500.0,0.00015068,2]
[333864226,1722579064362,-1083.36,0.00015068,2]
[333864227,1722579064372,-658.96,0.00015068,2]
[333864228,1722579064382,-500.0,0.00015068,2]
[333864229,1722579064392,-500.0,0.00015068,2]
[333864230,1722579064402,-217.85647214,0.00015068,2]
[333864231,1722579064412,-500.0,0.00015068,2]
[333864232,1722579064422,-737.68,0.00015068,2]
[333864233,1722579064432,-804.68,0.00015068,2]
[333864234,1722579064442,-500.0,0.00015068,2]
[333864235,1722579064452,-823.41,0.00015068,2]
[333864236,1722579064462,-1365.74,0.00015068,2]
[333864237,1722579064471,-500.0,0.00015068,2]
[333864238,1722579064481,-689.75,0.00015068,2]
[333864239,1722579064491,-987.68,0.00015068,2]
[333864240,1722579064501,-523.54626451,0.00015068,2]
[333864241,1722579064511,-500.0,0.00015068,2]
[333864242,1722579064520,-500.0,0.00015068,2]
[333864243,1722579064531,-550.17,0.00015068,2]
[333864244,1722579064541,-1094.99,0.00015068,2]
[333864245,1722579064553,-518.89,0.00015068,2]
[333864246,1722579064563,-1285.67,0.00015068,2]
[333864247,1722579064572,-500.0,0.00015068,2]
[333864248,1722579064582,-596.37,0.00015068,2]
[333864249,1722579064593,-1495.23,0.00015068,2]
[333864250,1722579064603,-500.0,0.00015068,2]
[333864251,1722579064613,-1907.27,0.00015068,2]
[333864252,1722579064623,-2296.25,0.00015068,2]
[333864253,1722579064634,-2383.19,0.00015068,2]
[333864254,1722579064645,-2109.37,0.00015068,2]
[333864255,1722579064654,-1239.38,0.00015068,2]
[333864256,1722579064664,-500.0,0.00015068,2]
[333864257,1722579064674,-500.0,0.00015068,2]
[333864258,1722579064684,-500.0,0.00015068,2]
[333864259,1722579064694,-259.14870643,0.00015068,2]
[333864260,1722579064704,-500.0,0.00015068,2]
[333864261,1722579064715,-500.0,0.00015068,2]
[333864262,1722579064724,-500.0,0.00015068,2]
[333864263,1722579064734,-557.42,0.00015068,2]
[333864264,1722579064744,-8928.74,0.00015068,2]
[333864265,1722579064754,-514.14426968,0.00015068,2]
[333864266,1722579064764,-3974.3,0.00015068,2]
[333864267,1722579064774,-677.33,0.00015068,2]
[333864268,1722579064784,-1546.82,0.00015068,2]
[333864269,1722579064794,-1043.82,0.00015068,2]
[333864270,1722579064860,-500.0,0.00015068,2]
[333864271,1722579064870,-500.0,0.00015068,2]
[333864272,1722579064880,-512.56842967,0.00015068,2]
[333864273,1722579064890,-545.96,0.00015068,2]
[333864274,1722579064900,-1153.47,0.00015068,2]
[333864275,1722579064910,-500.0,0.00015068,2]
[333864276,1722579064920,-749.82,0.00015068,2]
[333864277,1722579064930,-5500.2,0.00015068,2]
[333864278,1722579064939,-540.8880679,0.00015068,2]
[333864279,1722579064949,-560.79,0.00015068,2]
[333864280,1722579064959,-1545.14,0.00015068,2]
[333864281,1722579064969,-760.37,0.00015068,2]
[333864282,1722579064978,-174.96175305,0.00015068,2]
[333864283,1722579064988,-500.0,0.00015068,2]
[333864284,1722579064998,-500.0,0.00015068,2]
[333864285,1722579065007,-500.0,0.00015068,2]
[333864286,1722579065018,-919.48,0.00015068,2]
[333864287,1722579065028,-6346.79,0.00015068,2]
[333864288,1722579065038,-703.72,0.00015068,2]
[333864289,1722579065047,-516.88,0.00015068,2]
[333864290,1722579065057,-500.0,0.00015068,2]
[333864291,1722579065066,-500.0,0.00015068,2]
[333864292,1722579065076,-2490.95,0.00015068,2]
[333864293,1722579065085,-795.32,0.00015068,2]
[333864294,1722579065095,-500.0,0.00015068,2]
[333864295,1722579065104,-174.39734376,0.00015068,2]
[333864296,1722579065115,-500.0,0.00015068,2]
[333864297,1722579065125,-500.0,0.00015068,2]
[333864298,1722579065135,-500.0,0.00015068,2]
[333864299,1722579065145,-1047.04,0.00015068,2]
[333864300,1722579065155,-500.0,0.00015068,2]
[333864301,1722579065165,-688.64,0.00015068,2]
[333864302,1722579065175,-4027.37,0.00015068,2]
[333864303,1722579065184,-769.86,0.00015068,2]
[333864304,1722579065194,-500.0,0.00015068,2]
[333864305,1722579065204,-500.0,0.00015068,2]
[333864306,1722579065214,-1034.52,0.00015068,2]
[333864307,1722579065224,-500.0,0.00015068,2]
[333864308,1722579065233,-746.99,0.00015068,2]
[333864309,1722579065243,-500.0,0.00015068,2]
[333864310,1722579065253,-677.81,0.00015068,2]
[333864311,1722579065262,-1121.06,0.00015068,2]
[333864312,1722579065272,-817.67,0.00015068,2]
[333864313,1722579065281,-500.0,0.00015068,2]
[333864314,1722579065291,-746.97,0.00015068,2]
[333864315,1722579065300,-1338.14,0.00015068,2]
[333864316,1722579065310,-1468.19,0.00015068,2]
[333864317,1722579065319,-500.0,0.00015068,2]
[333864318,1722579065329,-620.00000119,0.00015216,2]
[333864319,1722579065338,-227201.6198592,0.00015341,2]
[333864320,1722579065347,-500.0,0.00015342,2]
[333864321,1722579065357,-500.0,0.00015342,2]
[333864322,1722579065367,-604.75481189,0.00015342,2]
[333864323,1722579065377,-974.01,0.00015342,2]
[333864324,1722579065386,-500.0,0.00015342,2]
[333864325,1722579065395,-500.0,0.00015342,2]
[333864326,1722579065406,-195.04099528,0.00015342,2]
[333864327,1722579065416,-500.0,0.00015342,2]
[333864328,1722579065425,-500.0,0.00015342,2]
[333864329,1722579065435,-641.78,0.00015342,2]
[333864330,1722579065445,-553.52789102,0.00015342,2]
[333864331,1722579065455,-723.5,0.00015342,2]
[333864332,1722579065464,-500.0,0.00015342,2]
[333864333,1722579065473,-1075.74,0.00015342,2]
[333864334,1722579065483,-947.16,0.00015342,2]
[333864335,1722579065494,-772.41,0.00015342,2]
[333864336,1722579065504,-500.0,0.00015342,2]
[333864337,1722579065513,-500.0,0.00015342,2]
[333864338,1722579065522,-902.37,0.00015342,2]
[333864339,1722579065532,-500.0,0.00015342,2]
[333864340,1722579065544,-500.0,0.00015342,2]
[333864341,1722579065557,-735.93,0.00015342,2]
[333864342,1722579065567,-500.0,0.00015342,2]
[333864343,1722579065577,-500.0,0.00015342,2]
[333864344,1722579065587,-765.76,0.00015342,2]
[333864345,1722579065597,-500.0,0.00015342,2]
[333864346,1722579065608,-313.11619612,0.00015342,2]
[333864347,1722579065619,-566.91,0.00015342,2]
[333864348,1722579065631,-592.23,0.00015342,2]
[333864349,1722579065642,-500.0,0.00015342,2]
[333864350,1722579065654,-503.1,0.00015342,2]
[333864351,1722579065663,-2064.69,0.00015342,2]
[333864352,1722579065673,-500.0,0.00015342,2]
[333864353,1722579065684,-417.92350513,0.00015342,2]
[333864354,1722579065694,-978.62,0.00015342,2]
[333864355,1722579065704,-500.0,0.00015342,2]
[333864356,1722579065714,-2504.91,0.00015342,2]
[333864357,1722579065724,-500.0,0.00015342,2]
[333864358,1722579065734,-1083.36,0.00015342,2]
[333864359,1722579065744,-658.96,0.00015342,2]
[333864360,1722579065753,-500.0,0.00015342,2]
[333864361,1722579065763,-500.0,0.00015342,2]
[333864362,1722579065772,-500.0,0.00015342,2]
[333864363,1722579065782,-737.68,0.00015342,2]
[333864364,1722579065793,-804.68,0.00015342,2]
[333864365,1722579065804,-500.0,0.00015342,2]
[333864366,1722579065815,-823.41,0.00015342,2]
[333864367,1722579065825,-1365.74,0.00015342,2]
[333864368,1722579065889,-500.0,0.00015342,2]
[333864369,1722579065901,-689.75,0.00015342,2]
[333864370,1722579065911,-987.68,0.00015342,2]
[333864371,1722579065921,-500.0,0.00015342,2]
[333864372,1722579065932,-500.0,0.00015342,2]
[333864373,1722579065942,-550.17,0.00015342,2]
[333864374,1722579065952,-1094.99,0.00015342,2]
[333864375,1722579065961,-518.89,0.00015342,2]
[333864376,1722579065970,-1285.67,0.00015342,2]
[333864377,1722579065980,-500.0,0.00015342,2]
[333864378,1722579065991,-596.37,0.00015342,2]
[333864379,1722579066002,-1495.23,0.00015342,2]
[333864380,1722579066012,-500.0,0.00015342,2]
[333864381,1722579066022,-1907.27,0.00015342,2]
[333864382,1722579066032,-2296.25,0.00015342,2]
[333864383,1722579066042,-2383.19,0.00015342,2]
[333864384,1722579066053,-2109.37,0.00015342,2]
[333864385,1722579066063,-1239.38,0.00015342,2]
[333864386,1722579066072,-500.0,0.00015342,2]
[333864387,1722579066082,-500.0,0.00015342,2]
[333864388,1722579066092,-500.0,0.00015342,2]
[333864389,1722579066103,-500.0,0.00015342,2]
[333864390,1722579066112,-500.0,0.00015342,2]
[333864391,1722579066122,-331.29716066,0.00015342,2]
[333864392,1722579066133,-557.42,0.00015342,2]
[333864393,1722579066143,-8928.74,0.00015342,2]
[333864394,1722579066155,-3974.3,0.00015342,2]
[333864395,1722579066164,-677.33,0.00015342,2]
[333864396,1722579066174,-1546.82,0.00015342,2]
[333864397,1722579066183,-1043.82,0.00015342,2]
[333864398,1722579066192,-500.0,0.00015342,2]
[333864399,1722579066202,-500.0,0.00015342,2]
[333864400,1722579066212,-545.96,0.00015342,2]
[333864401,1722579066222,-500.0,0.00015342,2]
[333864402,1722579066231,-1153.47,0.00015342,2]
[333864403,1722579066242,-749.82,0.00015342,2]
[333864404,1722579066252,-5500.2,0.00015342,2]
[333864405,1722579066261,-560.79,0.00015342,2]
[333864406,1722579066271,-1545.14,0.00015342,2]
[333864407,1722579066280,-760.37,0.00015342,2]
[333864408,1722579066290,-500.0,0.00015342,2]
[333864409,1722579066299,-500.0,0.00015342,2]
[333864411,1722579066309,-500.0,0.00015342,2]
[333864412,1722579066319,-919.48,0.00015342,2]
[333864414,1722579066331,-6346.79,0.00015342,2]
[333864415,1722579066354,-703.72,0.00015342,2]
[333864416,1722579066371,-516.88,0.00015342,2]
[333864417,1722579066391,-500.0,0.00015342,2]
[333864418,1722579066411,-500.0,0.00015342,2]
[333864419,1722579066428,-2490.95,0.00015342,2]
[333864420,1722579066448,-795.32,0.00015342,2]
[333864421,1722579066463,-500.0,0.00015342,2]
[333864422,1722579066482,-500.0,0.00015342,2]
[333864423,1722579066500,-500.0,0.00015342,2]
[333864424,1722579066518,-500.0,0.00015342,2]
[333864425,1722579066533,-1047.04,0.00015342,2]
[333864426,1722579066553,-500.0,0.00015342,2]
[333864427,1722579066569,-688.64,0.00015342,2]
[333864428,1722579066584,-4027.37,0.00015342,2]
[333864429,1722579066599,-769.86,0.00015342,2]
[333864430,1722579066615,-500.0,0.00015342,2]
[333864431,1722579066630,-500.0,0.00015342,2]
[333864432,1722579066651,-1034.52,0.00015342,2]
[333864433,1722579066667,-500.0,0.00015342,2]
[333864434,1722579066682,-746.99,0.00015342,2]
[333864435,1722579066697,-500.0,0.00015342,2]
[333864436,1722579066713,-677.81,0.00015342,2]
[333864437,1722579066727,-1121.06,0.00015342,2]
[333864438,1722579066743,-817.67,0.00015342,2]
[333864439,1722579066759,-314.74628742,0.00015342,2]
[333864440,1722579066773,-746.97,0.00015342,2]
[333864441,1722579066786,-1338.14,0.00015342,2]
[333864442,1722579066801,-1468.19,0.00015342,2]
[333864443,1722579066816,-500.0,0.00015342,2]
[333864444,1722579066831,-294.2025256,0.0001537,2]
[333864445,1722579066846,-294.2025256,0.0001537,2]
[333864446,1722579066861,-294.2025256,0.0001537,2]
[333864447,1722579066876,-1000.0,0.000155,2]
[333864448,1722579066891,-504.3404118,0.00015604,2]
[333864449,1722579066907,-270.8763614,0.00015604,2]
[333864450,1722579066922,-202.35990225,0.00015616,2]
[333864451,1722579066938,-500.0,0.00015616,2]
[333864452,1722579066954,-974.01,0.00015616,2]
[333864453,1722579066968,-500.0,0.00015616,2]
[333864454,1722579066982,-500.0,0.00015616,2]
[333864455,1722579066998,-500.0,0.00015616,2]
[333864456,1722579067013,-500.0,0.00015616,2]
[333864457,1722579067029,-641.78,0.00015616,2]
[333864458,1722579067044,-723.5,0.00015616,2]
[333864459,1722579067181,-500.0,0.00015616,2]
[333864460,1722579067195,-1075.74,0.00015616,2]
[333864461,1722579067206,-947.16,0.00015616,2]
[333864462,1722579067215,-772.41,0.00015616,2]
[333864463,1722579067224,-500.0,0.00015616,2]
[333864464,1722579067234,-350.30086077,0.00015616,2]
[333864465,1722579067243,-902.37,0.00015616,2]
[333864466,1722579067252,-500.0,0.00015616,2]
[333864467,1722579067263,-500.0,0.00015616,2]
[333864468,1722579067272,-735.93,0.00015616,2]
[333864469,1722579067282,-500.0,0.00015616,2]
[333864470,1722579067292,-630.06180408,0.00015616,2]
[333864471,1722579067302,-765.76,0.00015616,2]
[333864472,1722579067312,-500.0,0.00015616,2]
[333864473,1722579067323,-566.91,0.00015616,2]
[333864474,1722579067333,-592.23,0.00015616,2]
[333864475,1722579067344,-500.0,0.00015616,2]
[333864476,1722579067354,-503.1,0.00015616,2]
[333864477,1722579067363,-2064.69,0.00015616,2]
[333864478,1722579067372,-500.0,0.00015616,2]
[333864479,1722579067382,-978.62,0.00015616,2]
[333864480,1722579067396,-500.0,0.00015616,2]
[333864481,1722579067406,-2504.91,0.00015616,2]
[333864482,1722579067417,-500.0,0.00015616,2]
[333864483,1722579067428,-1083.36,0.00015616,2]
[333864484,1722579067439,-658.96,0.00015616,2]
[333864485,1722579067451,-500.0,0.00015616,2]
[333864486,1722579067461,-500.0,0.00015616,2]
[333864487,1722579067471,-500.0,0.00015616,2]
[333864488,1722579067482,-737.68,0.00015616,2]
[333864489,1722579067493,-804.68,0.00015616,2]
[333864490,1722579067505,-500.0,0.00015616,2]
[333864491,1722579067516,-823.41,0.00015616,2]
[333864492,1722579067527,-1365.74,0.00015616,2]
[333864493,1722579067538,-500.0,0.00015616,2]
[333864494,1722579067554,-689.75,0.00015616,2]
[333864495,1722579067568,-987.68,0.00015616,2]
[333864496,1722579067578,-500.0,0.00015616,2]
[333864497,1722579067588,-500.0,0.00015616,2]
[333864498,1722579067598,-550.17,0.00015616,2]
[333864499,1722579067608,-1094.99,0.00015616,2]
[333864500,1722579067617,-518.89,0.00015616,2]
[333864501,1722579067630,-1285.67,0.00015616,2]
[333864502,1722579067640,-500.0,0.00015616,2]
[333864503,1722579067649,-596.37,0.00015616,2]
[333864504,1722579067659,-1495.23,0.00015616,2]
[333864505,1722579067669,-336.19058226,0.00015616,2]
[333864506,1722579067678,-1907.27,0.00015616,2]
[333864507,1722579067688,-2296.25,0.00015616,2]
[333864508,1722579067698,-2383.19,0.00015616,2]
[333864509,1722579067708,-2109.37,0.00015616,2]
[333864510,1722579067718,-1239.38,0.00015616,2]
[333864511,1722579067727,-428.77759558,0.00015616,2]
[333864512,1722579067738,-500.0,0.00015616,2]
[333864513,1722579067748,-256.05663905,0.00015616,2]
[333864514,1722579067758,-500.0,0.00015616,2]
[333864515,1722579067768,-500.0,0.00015616,2]
[333864516,1722579067778,-557.42,0.00015616,2]
[333864517,1722579067788,-8928.74,0.00015616,2]
[333864518,1722579067798,-3974.3,0.00015616,2]
[333864519,1722579067807,-677.33,0.00015616,2]
[333864520,1722579067816,-1546.82,0.00015616,2]
[333864521,1722579067826,-1043.82,0.00015616,2]
[333864522,1722579067835,-500.0,0.00015616,2]
[333864523,1722579067845,-500.0,0.00015616,2]
[333864524,1722579067854,-545.96,0.00015616,2]
[333864525,1722579067864,-500.0,0.00015616,2]
[333864526,1722579067874,-1153.47,0.00015616,2]
[333864527,1722579067883,-749.82,0.00015616,2]
[333864528,1722579067893,-5500.2,0.00015616,2]
[333864529,1722579067903,-560.79,0.00015616,2]
[333864530,1722579067913,-1545.14,0.00015616,2]
[333864531,1722579067922,-760.37,0.00015616,2]
[333864532,1722579067933,-500.0,0.00015616,2]
[333864533,1722579067943,-500.0,0.00015616,2]
[333864534,1722579067955,-500.0,0.00015616,2]
[333864535,1722579067965,-919.48,0.00015616,2]
[333864536,1722579067975,-703.72,0.00015616,2]
[333864537,1722579067985,-516.88,0.00015616,2]
[333864538,1722579067995,-500.0,0.00015616,2]
[333864539,1722579068004,-6346.79,0.00015616,2]
[333864540,1722579068014,-513.40811255,0.00015616,2]
[333864541,1722579068024,-2490.95,0.00015616,2]
[333864542,1722579068034,-795.32,0.00015616,2]
[333864543,1722579068044,-500.0,0.00015616,2]
[333864544,1722579068054,-500.0,0.00015616,2]
[333864545,1722579068065,-500.0,0.00015616,2]
[333864546,1722579068075,-500.0,0.00015616,2]
[333864547,1722579068084,-1047.04,0.00015616,2]
[333864548,1722579068094,-500.0,0.00015616,2]
[333864549,1722579068104,-688.64,0.00015616,2]
[333864550,1722579068114,-4027.37,0.00015616,2]
[333864551,1722579068123,-769.86,0.00015616,2]
[333864552,1722579068134,-500.0,0.00015616,2]
[333864553,1722579068143,-500.0,0.00015616,2]
[333864554,1722579068154,-1034.52,0.00015616,2]
[333864555,1722579068164,-304.39610649,0.00015616,2]
[333864556,1722579068174,-746.99,0.00015616,2]
[333864557,1722579068184,-500.0,0.00015616,2]
[333864558,1722579068193,-677.81,0.00015616,2]
[333864559,1722579068203,-817.67,0.00015616,2]
[333864560,1722579068213,-1121.06,0.00015616,2]
[333864561,1722579068222,-746.97,0.00015616,2]
[333864562,1722579068232,-1338.14,0.00015616,2]
[333864563,1722579068242,-1468.19,0.00015616,2]
[333864564,1722579068252,-500.0,0.00015616,2]
[333864565,1722579068263,-200.18748269,0.00015642,2]
[333864566,1722579068273,-400.0,0.00015642,2]
[333864567,1722579068283,-2920.64875923,0.00015707,2]
[333864568,1722579068293,-459.55767833,0.00015707,4]
[333864569,1722579068303,-30000.0,0.00015707,2]
[333864570,1722579068312,-30000.0,0.00015707,2]
[333864571,1722579068322,-1991.22709473,0.00015708,2]
[333864572,1722579068332,-1162.44468635,0.00015708,2]
[333864573,1722579068342,-18192.9197922,0.00015708,2]
[333864574,1722579068352,-4077.0041103,0.00015708,2]
[333864575,1722579068362,-7000.28547761,0.00015708,2]
[333864576,1722579068442,-7713.30871728,0.00015708,2]
[333864577,1722579068452,-1710.35899879,0.00015708,2]
[333864578,1722579068461,-2277.73673607,0.00015708,3]
[333864579,1722579068470,-1794.24660097,0.00015708,2]
[333864580,1722579068480,-2138.69543601,0.00015708,2]
[333864581,1722579068490,-2162.11321258,0.00015708,2]
[333864582,1722579068499,-1437.98005348,0.00015708,2]
[333864583,1722579068508,-1763.05570325,0.00015708,2]
[333864584,1722579068518,-1500.0,0.00015708,2]
[333864585,1722579068528,-1610.35675552,0.00015708,2]
[333864586,1722579068538,-3087.05789986,0.00015708,2]
[333864587,1722579068548,-1382.64368307,0.00015708,2]
[333864588,1722579068560,-492.33861884,0.00015708,2]